bitfinex/quotes_BTCUSD_20250616
["timestamp","ask_amount","ask_price","bid_price","bid_amount"]
[1750082304080,0.49269572,107170.0,107160.0,0.83087303]
[1750082304287,0.49035612,107170.0,107160.0,0.83087303]
[1750082304518,0.10370278,107170.0,107160.0,0.80287856]
[1750082304782,0.10370278,107170.0,107160.0,0.83087303]
[1750082305208,0.10604351,107170.0,107160.0,0.83087303]
[1750082305412,0.12470413,107170.0,107160.0,0.32530004]
[1750082305630,0.36068776,107170.0,107140.0,0.18667137]
[1750082305843,0.42359419,107150.0,107140.0,0.2240042]
[1750082306063,0.41426201,107150.0,107140.0,0.32024596]
[1750082306485,0.42339738,107150.0,107140.0,0.32024596]
[1750082306698,0.4142621,107150.0,107140.0,0.32024596]
[1750082306912,0.42359437,107150.0,107140.0,0.32024596]
[1750082307120,0.49083118,107150.0,107140.0,0.31091316]
[1750082307574,0.62891357,107150.0,107140.0,0.32024621]
[1750082307781,0.62891418,107150.0,107140.0,0.20533826]
[1750082308001,0.42359428,107150.0,107140.0,0.30853635]
[1750082308215,0.43392672,107150.0,107140.0,0.23333778]
[1750082308427,0.42459428,107150.0,107140.0,0.23333778]
[1750082308643,0.69477437,107150.0,107140.0,0.21467158]
[1750082308854,0.43792664,107150.0,107140.0,0.23333778]
[1750082309278,0.42859428,107150.0,107140.0,0.23333778]
[1750082309536,0.40993,107150.0,107140.0,0.32957954]
[1750082309821,0.41926192,107150.0,107140.0,0.32957954]
[1750082310505,0.42859428,107150.0,107140.0,0.32957954]
[1750082310734,0.48452178,107150.0,107140.0,0.32957954]
[1750082310954,0.4192621,107150.0,107140.0,0.32957954]
[1750082311210,0.42859437,107150.0,107140.0,0.32957954]
[1750082311435,0.41926201,107150.0,107140.0,0.32957954]
[1750082311684,0.35433201,107150.0,107140.0,0.40477811]
[1750082311904,0.005,107150.0,107140.0,0.42477811]
[1750082312390,0.03909,107150.0,107140.0,0.34957954]
[1750082312652,0.06829,107150.0,107140.0,0.36957954]
[1750082312875,0.07535307,107150.0,107140.0,0.36957954]
[1750082313095,0.07435307,107150.0,107140.0,0.36957954]
[1750082313323,0.06729,107150.0,107140.0,0.36957954]
[1750082313549,0.06929,107150.0,107140.0,0.36957954]
[1750082314011,0.06529,107150.0,107140.0,0.36957954]
[1750082314240,0.08595428,107150.0,107140.0,0.36957954]
[1750082314446,0.1160129,107150.0,107140.0,0.25333778]
[1750082314629,0.1160129,107150.0,107140.0,0.02]
[1750082314850,0.12534543,107150.0,107140.0,0.02]
[1750082315107,0.31199965,107150.0,107140.0,0.02]
[1750082315319,0.34003465,107150.0,107140.0,0.02]
[1750082315522,0.31003784,107150.0,107110.0,0.3960595]
[1750082315736,0.09249203,107130.0,107120.0,0.29624176]
[1750082315960,0.6482662,107130.0,107120.0,0.29624176]
[1750082316436,0.21970167,107120.0,107110.0,0.2]
[1750082316653,0.09239509,107120.0,107110.0,0.29624176]
[1750082316863,0.61178604,107110.0,107100.0,0.4]
[1750082317099,0.61178604,107110.0,107100.0,0.68312444]
[1750082317303,0.61178604,107110.0,107100.0,0.20014132]
[1750082317767,0.61178604,107110.0,107100.0,0.39621974]
[1750082317999,0.62112154,107110.0,107100.0,0.49638308]
[1750082318206,0.03519,107110.0,107100.0,0.71113484]
[1750082318443,0.03719,107110.0,107100.0,0.72047129]
[1750082318667,0.00699,107110.0,107100.0,0.72047129]
[1750082319117,0.004,107110.0,107100.0,0.72047129]
[1750082319553,0.00899,107110.0,107100.0,0.72047129]
[1750082321950,0.004,107110.0,107100.0,0.72047129]
[1750082322162,0.00899,107110.0,107100.0,0.74047129]
[1750082322866,0.004,107110.0,107100.0,0.74047129]
[1750082323053,0.004,107110.0,107100.0,0.74066335]
[1750082324941,0.00899,107110.0,107100.0,0.74066335]
[1750082325208,0.07083073,107110.0,107100.0,0.74066335]
[1750082325438,0.08016614,107110.0,107100.0,0.74066335]
[1750082325663,0.35745192,107110.0,107100.0,0.4057486]
[1750082325873,0.16838727,107110.0,107100.0,0.42442176]
[1750082326089,0.1613919,107110.0,107100.0,0.42442176]
[1750082326281,0.36678803,107110.0,107100.0,0.42442176]
[1750082326517,0.16838719,107110.0,107100.0,0.42442176]
[1750082326732,0.17072792,107110.0,107100.0,0.42442176]
[1750082326942,0.1613919,107110.0,107100.0,0.42442176]
[1750082327123,0.51072792,107110.0,107100.0,0.42442176]
[1750082327324,0.50838719,107110.0,107100.0,0.42442176]
[1750082327855,0.50838719,107110.0,107100.0,0.4337583]
[1750082328080,0.40849,107110.0,107100.0,0.53000006]
[1750082328531,0.344,107110.0,107100.0,0.53000006]
[1750082328969,0.34899,107110.0,107100.0,0.53000006]
[1750082330854,0.004,107110.0,107100.0,0.53454006]
[1750082331080,0.004,107110.0,107100.0,0.56724006]
[1750082333807,0.004,107110.0,107100.0,0.57682781]
[1750082334919,0.004,107110.0,107100.0,0.60702781]
[1750082335729,0.002,107110.0,107100.0,0.60702781]
[1750082335924,0.34499,107130.0,107120.0,0.6347114]
[1750082336141,0.34499,107130.0,107120.0,0.73095316]
[1750082336635,0.0324,107140.0,107120.0,0.73095316]
[1750082336636,0.028035,107150.0,107140.0,0.46799969]
[1750082336843,0.12118229,107170.0,107160.0,0.43463127]
[1750082337052,0.4611822,107170.0,107160.0,0.44396267]
[1750082337270,0.15854282,107170.0,107160.0,0.44396267]
[1750082337480,0.16794578,107170.0,107160.0,0.44396267]
[1750082337947,0.49875645,107170.0,107160.0,0.44396267]
[1750082338372,0.50375637,107170.0,107160.0,0.44396267]
[1750082338583,0.49435341,107170.0,107160.0,0.44396267]
[1750082338793,0.57368094,107170.0,107160.0,0.44396267]
[1750082339030,0.57368103,107170.0,107160.0,0.44396267]
[1750082339240,0.49835341,107170.0,107160.0,0.44396267]
[1750082339659,0.50768394,107170.0,107160.0,0.44396267]
[1750082339884,0.49835341,107170.0,107160.0,0.44396267]
[1750082340087,0.50768385,107170.0,107160.0,0.44396267]
[1750082340308,0.51690716,107170.0,107160.0,0.44396267]
[1750082340523,0.52623778,107170.0,107160.0,0.44396267]
[1750082340738,0.59502166,107170.0,107160.0,0.44396267]
[1750082341171,0.58569104,107170.0,107160.0,0.44396267]
[1750082341385,0.49824636,107170.0,107160.0,0.44396267]
[1750082341619,0.44969278,107170.0,107160.0,0.74020443]
[1750082341841,0.41300278,107170.0,107160.0,0.76020443]
[1750082342069,0.07300278,107170.0,107160.0,0.76020443]
[1750082342281,0.04497278,107170.0,107160.0,0.76517443]
[1750082342495,0.04497278,107170.0,107160.0,0.79517443]
[1750082343025,0.04097278,107170.0,107160.0,0.74020443]
[1750082343483,0.04097278,107170.0,107160.0,0.77190443]
[1750082343945,0.03597278,107170.0,107160.0,0.77190443]
[1750082344382,0.03697278,107170.0,107160.0,0.77190443]
[1750082344585,0.03797278,107170.0,107160.0,0.74020443]
[1750082346322,0.03797278,107170.0,107160.0,0.80350443]
[1750082347303,0.03797278,107170.0,107160.0,0.80847443]
[1750082349662,0.03797278,107170.0,107160.0,1.41110922]
[1750082349877,0.03797278,107170.0,107160.0,1.42565007]
[1750082350321,0.03797278,107170.0,107160.0,0.83259131]
[1750082352266,0.03797278,107170.0,107160.0,0.81805046]
[1750082352474,0.03797278,107170.0,107160.0,0.78575046]
[1750082352938,0.03797278,107170.0,107160.0,0.74020443]
[1750082353204,0.04256278,107170.0,107160.0,0.74020443]
[1750082353421,0.04490351,107170.0,107160.0,0.74020443]
[1750082353856,0.04256278,107170.0,107160.0,0.74020443]
[1750082354085,0.04490351,107170.0,107160.0,0.74020443]
[1750082354303,0.04256278,107170.0,107160.0,0.74020443]
[1750082354566,0.03797278,107170.0,107160.0,0.74020443]
[1750082355684,0.03797278,107170.0,107160.0,0.80300443]
[1750082356122,0.03797278,107170.0,107160.0,0.77090443]
[1750082356332,0.03797278,107170.0,107160.0,0.74020443]
[1750082358243,0.03797278,107170.0,107160.0,0.74517443]
[1750082358445,0.03797278,107170.0,107160.0,0.77787443]
[1750082358668,0.03797278,107170.0,107160.0,0.80757443]
[1750082359961,0.03797278,107170.0,107160.0,0.74020443]
[1750082360627,0.03797278,107170.0,107160.0,0.76020443]
[1750082361851,0.04256278,107170.0,107160.0,0.76020443]
[1750082362065,0.04490351,107170.0,107160.0,0.74020443]
[1750082362290,0.07760351,107170.0,107160.0,0.74020443]
[1750082362948,0.07526278,107170.0,107160.0,0.74020443]
[1750082363178,0.03797278,107170.0,107160.0,0.80190443]
[1750082363448,0.03797278,107170.0,107160.0,0.81644528]
[1750082364338,0.03697278,107170.0,107160.0,0.81644528]
[1750082364812,0.03697278,107170.0,107160.0,1.65950404]
[1750082365028,0.03697278,107170.0,107160.0,1.06644528]
[1750082365252,0.03697278,107170.0,107160.0,1.65950404]
[1750082365700,0.03697278,107170.0,107160.0,1.06644528]
[1750082366410,0.03697278,107170.0,107160.0,1.65950404]
[1750082366638,0.03697278,107170.0,107160.0,1.06644528]
[1750082366866,0.03697278,107170.0,107160.0,0.81644528]
[1750082367326,0.03697278,107170.0,107160.0,0.82141528]
[1750082368416,0.03697278,107170.0,107160.0,1.41447404]
[1750082368897,0.03697278,107170.0,107160.0,0.82141528]
[1750082369314,0.02180597,107170.0,107160.0,0.82141528]
[1750082370137,0.02180597,107170.0,107160.0,1.41447404]
[1750082370347,0.02180597,107170.0,107160.0,0.82141528]
[1750082370967,0.02180597,107170.0,107160.0,0.81644528]
[1750082371198,0.02180597,107170.0,107160.0,0.82114528]
[1750082372337,0.02180597,107170.0,107160.0,0.81644528]
[1750082372570,0.02180597,107170.0,107160.0,0.78454528]
[1750082373638,0.02080597,107170.0,107160.0,0.78454528]
[1750082373840,0.02080597,107170.0,107160.0,0.78554528]
[1750082374225,0.01980597,107170.0,107160.0,0.78554528]
[1750082374437,0.01980597,107170.0,107160.0,1.45380261]
[1750082374646,0.01980597,107170.0,107160.0,2.07400261]
[1750082374847,0.01980597,107170.0,107160.0,1.15574528]
[1750082375051,0.01980597,107170.0,107160.0,0.78554528]
[1750082375671,0.01980597,107170.0,107160.0,0.74120443]
[1750082376313,0.05401597,107170.0,107160.0,0.74120443]
[1750082376521,0.02431597,107170.0,107160.0,0.74120443]
[1750082376727,0.01980597,107170.0,107160.0,0.74120443]
[1750082379361,0.01980597,107170.0,107160.0,0.78844528]
[1750082379570,0.01980597,107170.0,107160.0,1.77590404]
[1750082379775,0.00463896,107170.0,107160.0,1.77590404]
[1750082380641,0.00463896,107170.0,107160.0,1.16284528]
[1750082381836,0.00463896,107170.0,107160.0,1.75590404]
[1750082382474,0.00463896,107170.0,107160.0,2.3489628]
[1750082382675,0.00028096,107180.0,107170.0,1.18461085]
[1750082382818,0.00028096,107180.0,107170.0,1.23085261]
[1750082383037,0.00028096,107180.0,107170.0,1.30605118]
[1750082383456,0.00028096,107180.0,107170.0,0.71299242]
[1750082383691,0.00028096,107180.0,107170.0,1.30605118]
[1750082384337,0.00028096,107180.0,107170.0,1.35605118]
[1750082384555,0.00028096,107180.0,107170.0,1.42972761]
[1750082384991,0.00028096,107180.0,107170.0,0.83666885]
[1750082385210,0.00028096,107180.0,107170.0,1.42972761]
[1750082385648,0.10016143,107190.0,107180.0,0.44798924]
[1750082385863,0.09988047,107190.0,107180.0,1.84339082]
[1750082386105,0.09988047,107190.0,107180.0,1.83667407]
[1750082386356,0.09988047,107190.0,107180.0,1.98327607]
[1750082387445,0.09988047,107190.0,107180.0,1.98797607]
[1750082388143,0.09988047,107190.0,107180.0,1.99197607]
[1750082388358,0.09988047,107190.0,107180.0,1.98997607]
[1750082388578,0.0750368,107190.0,107180.0,1.98561783]
[1750082388806,0.0750368,107190.0,107180.0,1.98961783]
[1750082389238,0.0750368,107190.0,107180.0,1.89773458]
[1750082389883,0.0750368,107190.0,107180.0,1.90073458]
[1750082390302,0.0750368,107190.0,107180.0,1.97414042]
[1750082390522,0.0750368,107190.0,107180.0,1.90073458]
[1750082390955,0.05987659,107190.0,107180.0,1.90073458]
[1750082391372,0.05987659,107190.0,107180.0,1.97411591]
[1750082392931,0.05987659,107190.0,107180.0,1.87411591]
[1750082393141,0.05987659,107190.0,107180.0,1.92411591]
[1750082393573,0.05987659,107190.0,107180.0,1.19313497]
[1750082393794,0.05987659,107190.0,107180.0,1.75819173]
[1750082394062,0.05987659,107190.0,107180.0,1.77273258]
[1750082395362,0.05987659,107190.0,107180.0,1.82273258]
[1750082395568,0.05987659,107190.0,107180.0,1.89611391]
[1750082396866,0.05987659,107190.0,107180.0,1.92411891]
[1750082398424,0.05987659,107190.0,107180.0,2.22291891]
[1750082399044,0.05987659,107190.0,107180.0,2.21821891]
[1750082399289,0.05987659,107190.0,107180.0,1.91941891]
[1750082399503,0.05987659,107190.0,107180.0,1.84941891]
[1750082399718,0.05987659,107190.0,107180.0,1.77603758]
[1750082399923,0.05987659,107190.0,107180.0,1.43297882]
[1750082400134,0.05987659,107190.0,107180.0,1.99803258]
[1750082400364,0.09197659,107190.0,107180.0,1.00237382]
[1750082400620,0.09683659,107190.0,107180.0,0.73783297]
[1750082400851,0.05987659,107190.0,107180.0,0.73783297]
[1750082401073,0.05987659,107190.0,107180.0,1.68543258]
[1750082401302,0.05987659,107190.0,107180.0,1.82201391]
[1750082401520,0.05987659,107190.0,107180.0,1.86801391]
[1750082401764,0.05987659,107190.0,107180.0,1.93801391]
[1750082401981,0.1,107210.0,107200.0,1.32119203]
[1750082402206,0.10047087,107210.0,107200.0,2.01049255]
[1750082402425,0.10047087,107210.0,107200.0,2.65853131]
[1750082402643,0.10047087,107210.0,107200.0,2.78189988]
[1750082403954,0.10047087,107210.0,107200.0,2.70853131]
[1750082404184,0.10047087,107210.0,107200.0,2.73582949]
[1750082404411,0.10147087,107210.0,107200.0,2.73582949]
[1750082404628,0.0600559,107210.0,107200.0,2.83442949]
[1750082404850,0.01340667,107210.0,107200.0,2.83742949]
[1750082405069,0.00407683,107210.0,107200.0,2.83942949]
[1750082405292,0.00407683,107210.0,107200.0,2.83742949]
[1750082405516,0.002,107220.0,107210.0,1.32921078]
[1750082405776,0.00208784,107220.0,107210.0,1.49871904]
[1750082406003,0.00208784,107220.0,107210.0,1.57391761]
[1750082406226,0.01006,107230.0,107220.0,1.62769077]
[1750082406448,0.01006,107230.0,107220.0,1.79721159]
[1750082406674,0.01006,107230.0,107220.0,0.59087377]
[1750082406892,0.01006,107230.0,107220.0,1.70393253]
[1750082408290,0.01006,107230.0,107220.0,1.70593253]
[1750082408518,0.01006,107230.0,107220.0,2.09593253]
[1750082408746,0.00073016,107230.0,107220.0,1.57615283]
[1750082408962,0.0160622,107250.0,107240.0,1.28901201]
[1750082409198,0.0160622,107250.0,107240.0,1.95961253]
[1750082409416,0.0160622,107250.0,107240.0,1.92831253]
[1750082409641,0.0160622,107250.0,107240.0,0.99525377]
[1750082409853,0.01597558,107250.0,107240.0,0.99525377]
[1750082410073,0.01597558,107250.0,107240.0,1.60831253]
[1750082410531,0.01697558,107250.0,107240.0,1.01525377]
[1750082410749,0.02183558,107250.0,107240.0,1.01525377]
[1750082410962,0.05463558,107250.0,107240.0,1.00071292]
[1750082411177,0.05372338,107250.0,107240.0,1.00071292]
[1750082411401,0.01606338,107250.0,107240.0,1.00071292]
[1750082411614,0.01606338,107250.0,107240.0,1.60831253]
[1750082411847,0.01606338,107250.0,107240.0,1.94831253]
[1750082412728,0.01606338,107250.0,107240.0,0.99525377]
[1750082413174,0.01606338,107250.0,107240.0,1.00442691]
[1750082413175,0.08492338,107250.0,107240.0,1.00442691]
[1750082413688,0.08492338,107250.0,107240.0,0.73071292]
[1750082414783,0.08492338,107250.0,107240.0,0.51071292]
[1750082414990,0.08492338,107250.0,107240.0,0.73071292]
[1750082416319,0.08726411,107250.0,107240.0,0.73071292]
[1750082416572,0.02192338,107250.0,107240.0,0.98071292]
[1750082416773,0.08432338,107250.0,107240.0,0.98071292]
[1750082417006,0.08332338,107250.0,107240.0,0.73071292]
[1750082417236,0.08532338,107250.0,107240.0,0.73071292]
[1750082417443,0.08732338,107250.0,107240.0,0.73071292]
[1750082422533,0.05462338,107250.0,107240.0,0.73071292]
[1750082422897,0.08562338,107250.0,107240.0,0.73071292]
[1750082423507,0.08562338,107250.0,107240.0,0.51071292]
[1750082423720,0.08562338,107250.0,107240.0,0.73071292]
[1750082426326,0.08562338,107250.0,107240.0,0.85071292]
[1750082426534,0.09728742,107250.0,107240.0,0.85071292]
[1750082426742,0.08796411,107250.0,107240.0,0.85071292]
[1750082427252,0.09728733,107250.0,107240.0,0.85071292]
[1750082427464,0.10661081,107250.0,107240.0,0.85071292]
[1750082427669,0.08562338,107250.0,107240.0,0.85071292]
[1750082427872,0.08796411,107250.0,107240.0,0.85071292]
[1750082428294,0.08562338,107250.0,107240.0,0.85071292]
[1750082430043,0.05462338,107250.0,107240.0,1.17347292]
[1750082430166,0.02006338,107250.0,107240.0,1.17347292]
[1750082430583,0.05774338,107250.0,107240.0,1.11931292]
[1750082431092,0.08864338,107250.0,107240.0,1.17347292]
[1750082431494,0.05774338,107250.0,107240.0,1.17347292]
[1750082432158,0.08934338,107250.0,107240.0,1.17347292]
[1750082432557,0.05774338,107250.0,107240.0,1.11931292]
[1750082432769,0.05774338,107250.0,107240.0,1.17347292]
[1750082432963,0.05774338,107250.0,107240.0,1.11931292]
[1750082433174,0.05774338,107250.0,107240.0,1.17347292]
[1750082434175,0.08994338,107250.0,107240.0,1.11931292]
[1750082434788,0.08994338,107250.0,107240.0,1.17347292]
[1750082435202,0.08994338,107250.0,107240.0,1.11931292]
[1750082435399,0.08994338,107250.0,107240.0,1.17347292]
[1750082435814,0.05774338,107250.0,107240.0,1.17347292]
[1750082436252,0.02006338,107250.0,107240.0,1.17347292]
[1750082437086,0.02006338,107250.0,107240.0,1.25221377]
[1750082437287,0.02006338,107250.0,107240.0,1.9670919]
[1750082437948,0.02006338,107250.0,107240.0,1.28127457]
[1750082438144,0.01806338,107250.0,107240.0,1.28127457]
[1750082438362,0.01806338,107250.0,107240.0,1.20801377]
[1750082438765,0.01606338,107250.0,107240.0,1.31317457]
[1750082439206,0.01606338,107250.0,107240.0,1.25901457]
[1750082439414,0.01606338,107250.0,107240.0,1.28127457]
[1750082439620,0.01706338,107250.0,107240.0,1.28127457]
[1750082440252,0.01706338,107250.0,107240.0,0.98711457]
[1750082440451,0.01606338,107250.0,107240.0,1.24673372]
[1750082440655,0.02104338,107250.0,107240.0,1.24673372]
[1750082442445,0.02104338,107250.0,107240.0,1.19257372]
[1750082442661,0.02104338,107250.0,107240.0,1.24673372]
[1750082442871,0.01606338,107250.0,107240.0,1.25159372]
[1750082443784,0.01606338,107250.0,107240.0,1.19257372]
[1750082444005,0.04876338,107250.0,107240.0,1.19257372]
[1750082444214,0.05374338,107250.0,107240.0,1.17347292]
[1750082444411,0.08574338,107250.0,107240.0,1.11931292]
[1750082444839,0.08574338,107250.0,107240.0,1.17347292]
[1750082446047,0.08574338,107250.0,107240.0,1.11931292]
[1750082446257,0.08574338,107250.0,107240.0,1.17347292]
[1750082446636,0.08574338,107250.0,107240.0,1.11931292]
[1750082446842,0.08574338,107250.0,107240.0,1.17347292]
[1750082448666,0.08574338,107250.0,107240.0,0.85071292]
[1750082448895,0.08574338,107250.0,107240.0,1.17347292]
[1750082449324,0.08574338,107250.0,107240.0,1.11931292]
[1750082449539,0.08808411,107250.0,107240.0,1.17347292]
[1750082450417,0.08808411,107250.0,107240.0,1.11931292]
[1750082450418,0.09740733,107250.0,107240.0,1.11931292]
[1750082450841,0.09840742,107250.0,107240.0,1.17347292]
[1750082451050,0.1077309,107250.0,107240.0,1.17347292]
[1750082451255,0.10773082,107250.0,107240.0,1.17347292]
[1750082451522,0.10754872,107250.0,107240.0,1.17347292]
[1750082451739,0.11687229,107250.0,107240.0,1.17347292]
[1750082451950,0.10654872,107250.0,107240.0,1.17347292]
[1750082452179,0.10654872,107250.0,107240.0,0.95347292]
[1750082452396,0.3136763,107250.0,107240.0,0.63858236]
[1750082452609,0.30201217,107250.0,107240.0,0.44276]
[1750082453067,0.64201217,107250.0,107240.0,0.44276]
[1750082453514,5.69201217,107250.0,107240.0,0.57509757]
[1750082453727,5.69001217,107250.0,107240.0,0.58442244]
[1750082453945,5.69001217,107250.0,107240.0,0.59374714]
[1750082454376,5.69001217,107250.0,107240.0,0.60307175]
[1750082454593,0.64001217,107250.0,107240.0,0.59374714]
[1750082455008,0.64301217,107250.0,107240.0,0.59374714]
[1750082455215,0.6336886,107250.0,107240.0,0.59374714]
[1750082455452,0.6336886,107250.0,107240.0,0.60307175]
[1750082455673,0.62436477,107250.0,107240.0,0.59374723]
[1750082455891,0.62436477,107250.0,107240.0,0.60307184]
[1750082456309,0.62436477,107250.0,107240.0,0.59374723]
[1750082456536,0.62436477,107250.0,107240.0,0.58442244]
[1750082456755,0.62436477,107250.0,107240.0,0.3886]
[1750082458093,0.67436477,107250.0,107240.0,0.3886]
[1750082460947,5.72436477,107250.0,107240.0,0.3886]
[1750082461208,5.72436477,107250.0,107240.0,0.2686]
[1750082461437,5.72436477,107250.0,107200.0,0.25256]
[1750082461438,0.29166804,107210.0,107200.0,0.25256]
[1750082461678,0.29166804,107210.0,107200.0,0.55402554]
[1750082461679,0.28234134,107210.0,107200.0,0.55402554]
[1750082462108,0.27301438,107210.0,107200.0,0.35402554]
[1750082462338,0.30103138,107210.0,107200.0,0.05256]
[1750082462518,0.29170416,107210.0,107200.0,0.05256]
[1750082462761,0.29170416,107210.0,107200.0,0.23912716]
[1750082463012,0.3103586,107210.0,107200.0,0.19598318]
[1750082463226,0.3103586,107210.0,107200.0,8.784e-05]
[1750082463227,0.30303146,107210.0,107200.0,8.784e-05]
[1750082463663,0.11448118,107210.0,107200.0,0.22396719]
[1750082463881,0.11448118,107210.0,107200.0,0.22396737]
[1750082463882,0.1354767,107210.0,107200.0,0.22396737]
[1750082464103,0.33847363,107210.0,107200.0,8.784e-05]
[1750082464364,0.3361329,107210.0,107200.0,8.784e-05]
[1750082464583,0.3371329,107210.0,107200.0,8.784e-05]
[1750082465018,0.30203155,107210.0,107200.0,8.784e-05]
[1750082465230,0.30503155,107210.0,107200.0,8.784e-05]
[1750082465464,5.35503155,107210.0,107200.0,8.784e-05]
[1750082465684,5.35503155,107210.0,107200.0,0.00952199]
[1750082465899,5.35503155,107210.0,107200.0,0.00019364]
[1750082466331,5.79118077,107210.0,107200.0,0.00019364]
[1750082466555,5.74503155,107210.0,107200.0,0.00019364]
[1750082469767,5.74503155,107210.0,107200.0,0.00952199]
[1750082469981,5.74503155,107210.0,107200.0,0.19608915]
[1750082470403,5.49915422,107210.0,107200.0,0.21474525]
[1750082470627,5.71368513,107210.0,107200.0,0.21474525]
[1750082470874,5.69503129,107210.0,107200.0,0.21474534]
[1750082471091,5.70435869,107210.0,107200.0,0.21474534]
[1750082471313,5.51780893,107210.0,107200.0,0.23340091]
[1750082471540,5.489827,107210.0,107200.0,0.22407317]
[1750082471770,0.004,107210.0,107200.0,0.40484124]
[1750082472004,0.03883188,107210.0,107200.0,0.32031484]
[1750082472212,0.03883188,107210.0,107200.0,0.44031484]
[1750082472213,0.06010457,107210.0,107200.0,0.44031484]
[1750082472421,0.04145073,107210.0,107200.0,0.49291484]
[1750082473349,0.00634073,107210.0,107200.0,0.69291484]
[1750082473591,0.004,107210.0,107200.0,0.71621484]
[1750082473829,0.004,107210.0,107200.0,0.84668341]
[1750082474062,0.004,107210.0,107200.0,0.77148484]
[1750082474310,0.004,107210.0,107200.0,0.68361484]
[1750082474510,0.00851,107210.0,107200.0,0.71291484]
[1750082474719,0.004,107210.0,107200.0,0.71291484]
[1750082474927,0.003,107210.0,107200.0,0.71291484]
[1750082475138,0.003,107210.0,107200.0,0.66031484]
[1750082475355,0.03745073,107220.0,107210.0,0.21453117]
[1750082475567,0.00685073,107220.0,107210.0,0.31077293]
[1750082476205,0.00685073,107220.0,107210.0,0.58417293]
[1750082476206,0.00234073,107220.0,107210.0,0.58417293]
[1750082476417,0.34,107230.0,107220.0,0.43451116]
[1750082476629,0.34,107230.0,107220.0,0.53075292]
[1750082477859,0.34,107230.0,107220.0,0.58345872]
[1750082478072,0.344,107230.0,107220.0,0.58345872]
[1750082478282,0.344,107230.0,107220.0,0.60765872]
[1750082478499,0.004,107230.0,107220.0,0.60765872]
[1750082478707,0.007,107230.0,107220.0,0.63965872]
[1750082479357,0.007,107230.0,107220.0,0.60765872]
[1750082479563,0.007,107230.0,107220.0,0.55505872]
[1750082479799,0.26687584,107230.0,107220.0,0.0001058]
[1750082480034,0.4087332,107230.0,107220.0,0.0001058]
[1750082480268,5.56951581,107230.0,107220.0,0.0001058]
[1750082480484,0.05629115,107210.0,107200.0,0.22396667]
[1750082480741,0.40795928,107210.0,107200.0,0.2672391]
[1750082480988,0.39629106,107210.0,107200.0,0.27656684]
[1750082481194,0.38696384,107210.0,107200.0,0.27656684]
[1750082481822,0.37763679,107210.0,107200.0,0.27656684]
[1750082482047,0.40661811,107210.0,107200.0,0.27656684]
[1750082482265,0.43121802,107210.0,107200.0,0.39656684]
[1750082482470,0.4218908,107210.0,107200.0,0.39656684]
[1750082482679,0.38796375,107210.0,107200.0,0.39656684]
[1750082482891,0.36931,107210.0,107200.0,0.39656684]
[1750082483111,0.341,107210.0,107200.0,0.7173786]
[1750082483328,0.341,107210.0,107200.0,0.7128086]
[1750082483973,0.38023679,107210.0,107200.0,0.59656684]
[1750082484189,0.44997116,107210.0,107200.0,0.59656684]
[1750082484399,0.47795265,107210.0,107200.0,0.39656702]
[1750082484646,0.46862534,107210.0,107200.0,0.39656702]
[1750082484860,0.44264515,107210.0,107200.0,0.39656702]
[1750082485081,0.43331767,107210.0,107200.0,0.39656702]
[1750082485299,0.4426455,107210.0,107200.0,0.39656702]
[1750082485717,0.61986839,107210.0,107200.0,0.38723928]
[1750082485960,0.42399123,107210.0,107200.0,0.40589485]
[1750082486170,0.62919622,107210.0,107200.0,0.39656711]
[1750082486385,0.42399158,107210.0,107200.0,0.28589485]
[1750082486827,0.61986874,107210.0,107200.0,0.28589485]
[1750082487045,0.61986874,107210.0,107200.0,0.25791144]
[1750082487046,0.6765944,107210.0,107200.0,0.25791144]
[1750082487233,0.6765944,107210.0,107200.0,0.26723936]
[1750082487479,0.66726709,107210.0,107200.0,0.24858335]
[1750082487696,0.70793969,107210.0,107200.0,0.05268784]
[1750082487922,1.3034223,107210.0,107200.0,8.784e-05]
[1750082488143,1.3034223,107210.0,107170.0,0.2052807]
[1750082488144,0.40273966,107180.0,107170.0,0.2052807]
[1750082488364,0.4853344,107180.0,107170.0,0.19595026]
[1750082488635,0.01384018,107170.0,107160.0,0.46638055]
[1750082488862,0.03245073,107170.0,107160.0,0.46638055]
[1750082489512,0.03245073,107170.0,107160.0,0.41458055]
[1750082489697,0.03245073,107170.0,107160.0,0.46638055]
[1750082489957,0.03245073,107170.0,107160.0,0.46685142]
[1750082490171,0.03245073,107170.0,107160.0,0.41505142]
[1750082490382,0.03245073,107170.0,107160.0,0.46685142]
[1750082490806,0.09835136,107170.0,107160.0,0.46685142]
[1750082491030,0.10768163,107170.0,107160.0,0.46685142]
[1750082491255,0.08902109,107170.0,107160.0,0.46685142]
[1750082491684,0.09835127,107170.0,107160.0,0.46685142]
[1750082491906,0.45701216,107170.0,107160.0,0.26685142]
[1750082492128,0.42668036,107170.0,107160.0,0.26685142]
[1750082492905,0.43601063,107170.0,107160.0,0.26685142]
[1750082493338,0.43601072,107170.0,107160.0,0.26685142]
[1750082493540,0.45467204,107170.0,107160.0,0.23885713]
[1750082493773,0.48027204,107170.0,107160.0,0.25752019]
[1750082493981,5.75756149,107170.0,107160.0,0.05227087]
[1750082495037,5.8703441,107170.0,107160.0,0.00047087]
[1750082495233,5.8723441,107170.0,107160.0,0.00047087]
[1750082495433,5.8703441,107170.0,107160.0,0.00047087]
[1750082495635,5.8683441,107170.0,107160.0,0.00047087]
[1750082495850,0.07049602,107140.0,107130.0,0.32056]
[1750082496057,0.28182545,107140.0,107130.0,0.52605916]
[1750082496274,0.27015158,107140.0,107130.0,0.32070129]
[1750082496418,0.27015158,107140.0,107130.0,0.5167248]
[1750082497036,0.68818958,107140.0,107130.0,0.26890129]
[1750082497244,0.79897219,107140.0,107130.0,0.00014129]
[1750082497439,0.79897219,107140.0,107130.0,0.0087692]
[1750082497940,0.79897219,107140.0,107130.0,0.00014129]
[1750082498137,5.85297219,107140.0,107130.0,0.00014129]
[1750082498502,5.85297219,107140.0,107100.0,0.37607023]
[1750082498503,0.02350151,107110.0,107100.0,0.37607023]
[1750082498755,0.02350151,107110.0,107100.0,0.40483971]
[1750082498756,0.10087249,107110.0,107100.0,0.40483971]
[1750082498955,0.10087223,107110.0,107100.0,0.40481693]
[1750082499161,0.30626836,107110.0,107100.0,0.34364048]
[1750082499368,0.07985981,107110.0,107100.0,0.40481693]
[1750082499579,0.035178,107110.0,107100.0,0.40481693]
[1750082499802,0.23123802,107110.0,107100.0,0.39548048]
[1750082500016,0.22889729,107110.0,107100.0,0.38687518]
[1750082500230,0.04217337,107110.0,107100.0,0.40554817]
[1750082500442,0.02584198,107110.0,107100.0,0.40554817]
[1750082500651,0.22190192,107110.0,107100.0,0.36820167]
[1750082500860,0.30416273,107110.0,107100.0,0.38687554]
[1750082501064,0.65892697,107110.0,107100.0,0.15217338]
[1750082501266,0.70892697,107110.0,107100.0,0.15217338]
[1750082501476,5.78222697,107110.0,107100.0,0.15217338]
[1750082502117,5.89300958,107110.0,107100.0,0.33891474]
[1750082502333,0.343,107110.0,107100.0,0.36692479]
[1750082502535,0.36167108,107110.0,107100.0,0.36692479]